[Event "Ostravsky Konik FIDE-A 2024"]
[Site "Ostrava"]
[Date "2024.04.27"]
[Round "1.1"]
[White "Kozlowski, Franciszek"]
[Black "Decuigniere, Tom"]
[Result "0-1"]
[ECO "D94"]
[WhiteElo "2021"]
[BlackElo "2401"]
[Annotator "TA"]
[PlyCount "117"]
[EventDate "2024.04.26"]
[EventType "swiss"]
[EventCountry "CZE"]
[SourceTitle "playchess.com"]
[Source "ChessBase"]
[SourceQuality "1"]
[TimeControl "40/5400+30:1800+30"]

{[%evp 19,117,0,25,-10,-31,-112,-122,-104,-103,-104,-102,-114,-72,-90,-79,-90,-83,-90,-81,-145,-144,-132,-146,-133,-137,-163,-118,-216,-118,-116,-110,-126,-16,-16,-7,-15,-8,-9,-4,-87,-31,-28,-28,-50,-54,-48,-37,-33,-31,-33,-12,-71,-36,-64,-16,-24,-22,-19,-8,-8,-8,-8,-8,-8,-8,-8,-8,-8,-8,-8,-8,-29966,-29967,-29967,-29968,-29968,-29969,-29971,-29973,-29973,-29974,-29976,-29977,-29977,-29976,-29980,-29981,-29981,-29981,-29984,-29985,-29985,-29986,-29986,-29987,-29987,-29985,-29986,-29987,-29987]} 1. Nf3 {[%emt 0:00:31]} d5 {[%emt 0:00:52]} 2. d4 {[%emt 0:00:45]} Nf6 {[%emt 0:00:37]} 3. e3 {[%emt 0:01:35]} g6 {[%emt 0:02:35]} 4. c4 {[%emt 0:02:12]} Bg7 {[%emt 0:00:41]} 5. Nc3 {[%emt 0:01:15]} O-O {[%emt 0:02:31]} 6. cxd5 {[%emt 0:06:14]} Nxd5 {[%emt 0:00:44]} 7. Bc4 {[%emt 0:04:01]} Nxc3 {[%emt 0:03:11]} 8. bxc3 {[%emt 0:00:08]} c5 {[%emt 0:00:11]} 9. O-O {[%emt 0:01:11]} Qc7 {[%emt 0:02:54]} 10. Qe2 {[%emt 0:10:59]} b6 {[%emt 0:10:55]} 11. Bd5 {[%emt 0:09:00]} Ba6 {[%emt 0:02:43]} 12. c4 {[%emt 0:07:44]} (12. Bc4 $15 Bxc4 13. Qxc4) 12... Nc6 $17 {[%emt 0:01:21][%cal Bb8c6,Bc6a5,Ba5c4][%mdl 32]} 13. Bb2 {[%emt 0:03:56] Black is better.} cxd4 {[%emt 0:08:41]} 14. exd4 {[%emt 0:11:37] [#]} Rac8 $1 {[%emt 0:01:59] Threatens to win with ...Nb4.} 15. Rfc1 {[%emt 0:06:44]} Na5 {[%emt 0:10:12]} 16. Ba3 {[%emt 0:06:04][%cal Oc1c2] Inhibits Qd6.} Bxc4 {[%emt 0:05:44]} 17. Bxc4 {[%emt 0:05:07]} Nxc4 {[%emt 0:00:01]} 18. Qxe7 {[%emt 0:01:23]} Qf4 {[%emt 0:02:12]} 19. Bb4 {[%emt 0:09:26] [#]} (19. h3 $142) 19... Ne5 $1 {[%emt 0:01:42][%mdl 512]} 20. Rxc8 {[%emt 0:07:20]} Nxf3+ {[%emt 0:00:07]} 21. gxf3 {[%emt 0:00:13]} Rxc8 {[%emt 0:00:04]} 22. Qb7 {[%emt 0:01:31]} Rb8 {[%emt 0:06:03]} 23. Bd2 {[%emt 0:02:14]} Qd6 {[%emt 0:02:46]} (23... Qxd2 $2 24. Qxb8+ Bf8 25. Kg2 $18 (25. Qxa7 Qg5+ 26. Kh1 Qd5 $11)) (23... Rxb7 24. Bxf4 Bxd4 25. Rd1 $15) (23... Bxd4 24. Qxa7 Bxf2+ (24... Qxd2 25. Qxb8+ Kg7 26. Rf1 $14) 25. Kg2) ({Better is} 23... Qxh2+ $19 24. Kxh2 Rxb7) 24. Qxa7 {[%emt 0:00:29]} Bxd4 {[%emt 0:00:44]} 25. Rf1 {[%emt 0:00:06][%cal Od2b4]} Re8 {[%emt 0:00:53]} (25... Be5 $17 26. Be3 Bxh2+ 27. Kg2 Bf4) 26. Qa4 $11 {[%emt 0:00:49]} Rc8 {[%emt 0:04:21]} 27. Kg2 {[%emt 0:01:26]} Qd5 {[%emt 0:03:22]} 28. Rc1 {[%emt 0:00:30]} Bc5 {[%emt 0:26:24]} (28... Rxc1 {simplifies} 29. Bxc1 Kg7 30. Qd1 Qc4) 29. Qc2 {[%emt 0:00:30]} (29. Bh6 $11) 29... Rd8 {[%emt 0:00:30]} (29... Ra8 $17 30. a4 Qd7) 30. Bf4 {[%emt 0:00:30]} g5 {[%emt 0:00:00][%cal Bg6g5,Bg5g4][%mdl 32]} 31. Bc7 {[%emt 0:00:30]} Rd7 {[%emt 0:00:00]} 32. Bb8 {[%emt 0:00:30]} g4 {[%emt 0:00:00]} 33. Qe4 {[%emt 0:00:00]} Qxe4 {[%emt 0:00:00]} (33... Qxa2 $2 {loses.} 34. Qxg4+ (34. fxg4 $2 Qxf2+ 35. Kh1 Rd4 $19) 34... Kf8 35. Rxc5 $18 (35. Qxd7 Qxf2+ 36. Kh3 Qxf3+ 37. Bg3 Qh5+ 38. Kg2 Qe2+ 39. Kh3 Qh5+ 40. Kg2 Qe2+ 41. Kh3 Qh5+ $11) (35. Qxd7 Qxf2+ 36. Kh3 Qxf3+ 37. Bg3 Qh5+ 38. Kg2 Qe2+ 39. Kh3 Qh5+ 40. Bh4 Qf3+ 41. Bg3 Qh5+ $11)) 34. fxe4 $15 {[%emt 0:00:00][%mdl 4096] Endgame. KRB-KRB} Rd2 {[%emt 0:00:00]} 35. Rf1 {[%emt 0:00:36]} (35. Kg3 $11 {remains equal.}) 35... h5 {[%emt 0:00:00]} 36. h3 {[%emt 0:01:24]} Rxa2 {[%emt 0:00:00] Black has more active pieces.} (36... gxh3+ $15 37. Kxh3 Bxf2 (37... Rxa2 38. Bg3 $17) (37... Rxf2 38. Rxf2 Bxf2 39. Ba7 $11)) 37. hxg4 $11 {[%emt 0:00:00]} hxg4 {[%emt 0:00:00]} 38. Kg3 {[%emt 0:00:00]} Kg7 {[%emt 0:00:00]} 39. Kxg4 {[%emt 0:00:23]} Rxf2 {[%emt 0:00:00]} 40. Rxf2 {[%emt 0:00:58]} Bxf2 {[%emt 0:00:00] KB-KB} 41. Kf5 {[%emt 0:30:10]} b5 {[%emt 0:24:28]} 42. Be5+ {[%emt 0:00:55]} Kf8 {[%emt 0:01:33]} 43. Bd6+ {[%emt 0:00:11]} Ke8 {[%emt 0:00:03] ...Bh4 would now be deadly.} 44. e5 {[%emt 0:00:20]} Bg3 {[%emt 0:00:59]} 45. Kf6 $2 {[%emt 0:00:04][%mdl 8192] This costs White the game.} (45. Kg4 $11 Be1 46. Kf5) 45... Bh4+ {[%emt 0:00:19] Black mates.} 46. Kf5 {[%emt 0:00:10]} Be7 {[%emt 0:00:24]} 47. Bc7 {[%emt 0:00:48]} Kd7 {[%emt 0:04:50]} 48. Bb6 {[%emt 0:01:21]} Kc6 {[%emt 0:03:00]} 49. Ba5 {[%emt 0:00:25]} Kd5 {[%emt 0:00:01]} 50. Bc3 {[%emt 0:00:44]} Kc4 {[%emt 0:02:12]} 51. Bb2 {[%emt 0:00:27]} b4 {[%emt 0:00:56]} 52. e6 {[%emt 0:00:21]} fxe6+ {[%emt 0:00:04]} 53. Kxe6 {[%emt 0:00:05]} Bf8 {[%emt 0:00:09]} 54. Kf5 {[%emt 0:00:28]} Kd3 {[%emt 0:01:18]} 55. Ke6 b3 {[%emt 0:00:41]} 56. Kd5 {[%emt 0:01:27]} Bb4 {[%emt 0:02:33]} 57. Bc1 {[%emt 0:01:13]} Kc3 {[%emt 0:00:30]} 58. Bg5 {[%emt 0:00:00]} Kc2 {[%emt 0:00:00]} 59. Ke5 {[%emt 0:01:00] Weighted Error Value: White=0.25 (precise) /Black=0.14 (very precise) .  Loses game:     	White=1     	---        Mistake:       	White=5     	Black=4      Inaccurate:     	White=1     	Black=2      OK:         	White=14    	Black=11     Best:        	White=5     	Black=2      Strong:       	---       	Black=1      Brilliant:      	---       	Black=1} 0-1

[Event "Ostravsky Konik FIDE-A 2024"]
[Site "Ostrava"]
[Date "2024.04.27"]
[Round "1.2"]
[White "Nguyen, Piotr"]
[Black "Rekuc, Patryk"]
[Result "1-0"]
[ECO "D00"]
[WhiteElo "2398"]
[BlackElo "2003"]
[Annotator "TA"]
[PlyCount "87"]
[EventDate "2024.04.26"]
[EventType "swiss"]
[EventCountry "CZE"]
[SourceTitle "playchess.com"]
[Source "ChessBase"]
[SourceQuality "1"]
[TimeControl "40/5400+30:1800+30"]

{[%evp 9,87,-4,-4,-9,-4,0,0,-3,0,-6,0,0,7,0,35,35,22,25,54,48,46,37,79,75,79,67,70,63,54,44,49,25,24,0,-14,-47,0,-3,0,-23,0,0,-7,-90,-65,-63,-18,-27,0,0,0,0,0,0,32,37,35,0,35,35,60,58,69,69,81,68,229,172,312,312,259,253,473,455,621,616,608,456,870,809]} 1. d4 {[%emt 0:00:03]} Nf6 {[%emt 0:00:10]} 2. Bf4 {[%emt 0:00:18]} e6 {[%emt 0:00:13]} 3. e3 {[%emt 0:00:44]} d5 {[%emt 0:02:00]} 4. Nd2 {[%emt 0:01:47]} Bd6 {[%emt 0:01:55]} 5. Bg3 {[%emt 0:00:07]} b6 {[%emt 0:01:54]} 6. Ngf3 {[%emt 0:00:37]} Bb7 {[%emt 0:00:32]} 7. c3 {[%emt 0:04:31]} O-O {[%emt 0:01:50]} 8. Bd3 {[%emt 0:02:12] The position is equal.} c5 {[%emt 0:02:37]} 9. Ne5 {[%emt 0:02:59]} Qc7 {[%emt 0:02:04]} 10. O-O {[%emt 0:03:06]} Nfd7 {[%emt 0:17:14]} 11. f4 {[%emt 0:09:33][%cal Bf2f4,Bf4e5][%mdl 32]} c4 {[%emt 0:10:33]} 12. Bc2 {[%emt 0:01:58]} f5 $1 {[%emt 0:01:07]} 13. Bh4 {[%emt 0:02:04]} Nxe5 {[%emt 0:02:40]} 14. fxe5 {[%emt 0:03:19]} Be7 {[%emt 0:00:06]} 15. Qh5 {[%emt 0:02:48]} Bc6 {[%emt 0:04:01] [#] White must now prevent ...Be8.} 16. Bxe7 {[%emt 0:03:21]} Qxe7 {[%emt 0:00:05]} 17. g4 {[%emt 0:00:49] White is more active.} g6 {[%emt 0:02:08]} 18. Qh3 {[%emt 0:02:00][%cal Rg4f5]} Na6 {[%emt 0:03:05]} 19. Rf4 {[%emt 0:10:02]} Nc7 {[%emt 0:02:57]} 20. Raf1 {[%emt 0:06:22]} b5 {[%emt 0:03:57]} 21. Qg2 {[%emt 0:01:00][%cal Rg4f5]} Kh8 {[%emt 0:01:18]} 22. h4 {[%emt 0:03:07]} Rab8 {[%emt 0:06:51]} 23. a3 {[%emt 0:08:00]} a5 {[%emt 0:02:51]} 24. Qh3 {[%emt 0:02:51]} b4 {[%emt 0:04:35]} 25. axb4 {[%emt 0:00:09]} axb4 {[%emt 0:00:05]} 26. R4f2 {[%emt 0:04:45]} (26. h5 $1 $11 bxc3 27. bxc3) 26... bxc3 $17 {[%emt 0:01:12]} 27. bxc3 {[%emt 0:00:02]} Nb5 {[%emt 0:06:14]} 28. h5 {[%emt 0:02:57]} fxg4 {[%emt 0:05:00]} 29. Rxf8+ {[%emt 0:06:14]} Rxf8 {[%emt 0:00:09]} 30. Rxf8+ {[%emt 0:00:03]} (30. Qxg4 Rxf1+ 31. Kxf1 gxh5 (31... Nxc3 32. hxg6 Ba4 33. Bxa4 $11) 32. Qxh5 Nxc3) 30... Qxf8 {[%emt 0:00:06]} 31. Qxg4 {[%emt 0:00:04]} gxh5 {[%emt 0:00:49]} 32. Qxe6 {[%emt 0:02:20]} Qg8+ {[%emt 0:00:18]} 33. Qxg8+ {[%emt 0:02:55]} Kxg8 $14 {[%emt 0:00:05][%mdl 4096] Endgame. KBN-KBN} 34. Nb1 {[%emt 0:04:19]} Nc7 {[%emt 0:01:55]} 35. Kf2 {[%emt 0:00:22]} Be8 {[%emt 0:00:06]} 36. Nd2 {[%emt 0:05:00]} Bg6 {[%emt 0:00:13] [#]} 37. Ba4 {[%emt 0:00:10][%cal Oe3e4]} Bf5 $2 {[%emt 0:02:59] A mistake that costs the game.} (37... Be8 $14 38. Bxe8 Nxe8) 38. Kg3 $18 {[%emt 0:00:33] Hoping for Kh4.} Kf7 {[%emt 0:03:29]} (38... Bd3 $142 39. Bc6 Kg7) 39. Kh4 {[%emt 0:02:03]} Bg4 {[%emt 0:00:46]} 40. Nf1 {[%emt 0:01:17]} Ke7 $2 {[%emt 0:00:17]} (40... h6 41. Bc6 Bf3) 41. Ng3 {[%emt 0:31:18] White is clearly winning.} Bd7 {[%emt 0:30:37]} 42. Bxd7 {[%emt 0:01:18]} Kxd7 {[%emt 0:00:01]} 43. Kxh5 {[%emt 0:00:32]} ({Worse is} 43. Nxh5 Nb5 $11) 43... Nb5 {[%emt 0:01:09]} (43... Ke6 $142 44. Kg5 Nb5) 44. Ne2 {[%emt 0:00:05] Weighted Error Value: White=0.11 (very precise) /Black=0.33.  Loses game:     	---       	Black=1      Mistake:       	White=1     	Black=2      Inaccurate:     	White=2     	Black=9      OK:         	White=20    	Black=12     Best:        	White=3     	Black=1      Strong:       	---       	Black=1} 1-0

[Event "Ostravsky Konik FIDE-A 2024"]
[Site "Ostrava"]
[Date "2024.04.27"]
[Round "1.3"]
[White "Szczotka, Klara"]
[Black "Romanishin, Oleg M"]
[Result "0-1"]
[ECO "B44"]
[WhiteElo "2003"]
[BlackElo "2372"]
[Annotator "TA"]
[PlyCount "138"]
[EventDate "2024.04.26"]
[EventType "swiss"]
[EventCountry "CZE"]
[SourceTitle "playchess.com"]
[Source "ChessBase"]
[SourceQuality "1"]
[TimeControl "40/5400+30:1800+30"]

{[%evp 43,138,-35,-23,-23,-19,-26,-31,-28,-32,-35,-29,-39,-30,-39,-40,-96,-52,-60,-54,-58,-39,-169,0,-57,0,-158,-58,-60,-56,-64,0,-50,0,-58,-57,-61,-41,-168,-43,-60,-52,-62,-41,-37,-26,-69,-33,-54,-50,-54,-54,-118,-83,-118,-83,-72,-75,-78,-55,-106,-86,-114,-99,-126,-126,-121,-97,-272,-247,-295,-295,-570,-451,-553,-563,-787,-769,-956,-1000,-1335,-1260,-1618,-1430,-29970,-12523,-29974,-29975,-29978,-29979,-29979,-29980,-29980,-29981,-29981,-29982,-29982,-29983]} 1. e4 {[%emt 0:00:02]} c5 {[%emt 0:00:05]} 2. Nf3 {[%emt 0:00:03]} e6 {[%emt 0:00:05]} 3. d4 {[%emt 1:31:55]} cxd4 {[%emt 0:00:08]} 4. Nxd4 {[%emt 0:00:00]} Nc6 {[%emt 0:00:05]} 5. Be3 {[%emt 0:00:00]} Nf6 {[%emt 0:01:02]} 6. f3 {[%emt 0:00:00]} d5 {[%emt 0:04:14]} 7. Bb5 {[%emt 0:00:00] B44: Sicilian: Taimanov: 5 Nb5.} Bd7 {[%emt 0:09:33]} 8. Nd2 {[%emt 0:00:00]} e5 $146 {[%emt 0:18:34]} ({Predecessor:} 8... dxe4 9. Nxc6 bxc6 10. Bc4 Nd5 11. Bxd5 cxd5 12. fxe4 Bc6 13. O-O dxe4 14. Qh5 Qc7 {0-1 Elesh,S (2104)-Korneev,O (2590) Golden Cleopatra op 2016 (3)}) 9. Ne2 {[%emt 0:00:00]} Qa5 {[%emt 0:03:30]} 10. Bd3 {[%emt 0:00:00]} dxe4 {[%emt 0:04:42]} 11. Bxe4 {[%emt 0:00:00]} Nxe4 {[%emt 0:01:35]} 12. fxe4 {[%emt 0:00:00]} Bc5 {[%emt 0:00:27]} 13. Bxc5 {[%emt 0:00:00]} Qxc5 {[%emt 0:00:10]} 14. Nb3 {[%emt 0:00:00]} Qc4 {[%emt 0:11:02]} 15. Nc3 {[%emt 0:00:00]} O-O-O {[%emt 0:01:42]} 16. Qd5 {[%emt 0:00:00]} Be6 {[%emt 0:01:13]} 17. Qxc4 {[%emt 0:00:00]} Bxc4 {[%emt 0:00:27]} 18. Nd2 {[%emt 0:00:00]} Be6 {[%emt 0:03:28]} 19. O-O-O {[%emt 0:00:00]} b6 {[%emt 0:08:39]} 20. Nf3 {[%emt 0:00:00]} f6 {[%emt 0:00:16]} 21. h3 {[%emt 0:00:00]} a6 {[%emt 0:06:56]} 22. g4 {[%emt 0:00:00]} Rxd1+ {[%emt 0:08:22]} 23. Rxd1 {[%emt 0:00:00]} Rd8 {[%emt 0:00:08]} 24. Rxd8+ {[%emt 0:00:00]} Kxd8 {[%emt 0:00:02]} 25. a3 {[%emt 0:00:00]} Ne7 {[%emt 0:03:12]} 26. Kd2 {[%emt 0:00:00]} h5 {[%emt 0:02:10]} 27. Nh2 {[%emt 0:00:00]} Ng6 {[%emt 0:02:21]} 28. Ne2 {[%emt 0:00:00]} hxg4 {[%emt 0:01:30]} 29. Nxg4 {[%emt 0:00:00]} (29. hxg4 $15 Nf4 30. Nc3) 29... Kd7 {[%emt 0:01:17]} 30. Ke3 {[%emt 0:00:00]} Kc6 {[%emt 0:00:07]} 31. Nf2 {[%emt 0:00:00]} Nh4 {[%emt 0:03:47]} 32. Ng4 {[%emt 0:00:00]} ({White should try} 32. Ng3 $15) 32... Ng6 {[%emt 0:00:14]} ({Better is} 32... Ng2+ $1 $19 33. Kf2 Nf4 34. Nxf4 exf4) 33. Nf2 $15 {[%emt 0:00:00]} Nh4 {[%emt 0:00:05]} (33... Bd7 $15) 34. Ng4 $1 $17 {[%emt 0:00:00]} Kc5 {[%emt 0:00:59]} (34... Ng2+ $1 $17 35. Kf2 Nf4 36. Nxf4 Bxg4 (36... exf4 $2 37. e5 $19)) 35. Kf2 $15 {[%emt 0:00:00]} Ng6 {[%emt 0:00:12]} 36. Ke3 {[%emt 0:00:00]} Nh4 {[%emt 0:00:16]} 37. Kf2 $1 {[%emt 0:00:00]} Ng6 {[%emt 0:00:06]} 38. Ke3 $1 {[%emt 0:00:00]} a5 {[%emt 0:00:07]} 39. Nf2 {[%emt 0:00:00]} Nh4 {[%emt 0:01:20]} 40. Ng4 {[%emt 0:00:00] [#]} (40. Ng3 $15) 40... Kd6 {[%emt 0:02:41]} (40... Ng2+ $1 $19 41. Kd2 Nf4 42. Nxf4 exf4) 41. Kf2 {[%emt 0:25:44]} Ng6 {[%emt 0:30:54]} 42. Kg3 {[%emt 0:01:06]} Bc4 {[%emt 0:00:36]} 43. Nc3 {[%emt 0:01:34]} Nf4 {[%emt 0:01:44]} 44. Ne3 {[%emt 0:01:19]} Be6 {[%emt 0:00:19]} 45. h4 {[%emt 0:03:35]} Kc5 {[%emt 0:00:00]} 46. Kf3 {[%emt 0:00:00]} b5 {[%emt 0:00:00]} 47. Ncd1 {[%emt 0:00:00] [#]} (47. Ne2 $15 Nxe2 48. Kxe2) 47... Bf7 $1 $17 {[%emt 0:00:00]} 48. Nf2 {[%emt 0:00:00]} Bh5+ {[%emt 0:00:00]} 49. Kg3 {[%emt 0:00:00]} Ne2+ {[%emt 0:00:00]} 50. Kg2 {[%emt 0:00:05]} Nd4 {[%emt 0:00:00]} 51. Nd3+ {[%emt 0:03:00]} (51. c3 $1 $15 Nb3 52. Nh1) 51... Kd6 {[%emt 0:00:00]} 52. Kg3 {[%emt 0:00:38]} g6 {[%emt 0:00:00]} 53. a4 {[%emt 0:06:33]} bxa4 {[%emt 0:00:00]} 54. Nc4+ {[%emt 0:00:05]} Kc7 {[%emt 0:00:00]} 55. Nc5 $2 {[%emt 0:01:14]} (55. Ne3 $17 {was called for.}) 55... Be2 {[%emt 0:01:48]} (55... Nxc2 56. Nxa4 Kc6 57. Nc3 $15) 56. Ne3 {[%emt 0:00:33]} Bb5 {[%emt 0:01:15]} 57. c3 $2 {[%emt 0:01:14]} (57. Kf2) 57... Ne2+ {[%emt 0:01:53]} 58. Kf3 {[%emt 0:01:46]} Nf4 {[%emt 0:00:22]} 59. c4 {[%emt 0:02:40]} Kb6 {[%emt 0:00:26]} 60. Ne6 {[%emt 0:03:13]} Nxe6 {[%emt 0:00:32]} 61. Nd5+ {[%emt 0:00:16]} Kc5 {[%emt 0:00:42]} 62. cxb5 {[%emt 0:00:05]} Kxb5 {[%emt 0:00:37]} 63. Nxf6 {[%emt 0:01:59]} Kc4 {[%emt 0:00:11]} (63... Kb4 $142 64. Nd7 Kb3 65. Nb6 Nc5 (65... Kxb2 $2 66. Nxa4+ Kb3 67. Nb6 $19) 66. Kg4 Nxe4 (66... Kxb2 $2 67. Kg5 $19) 67. Kf3 Nc5 68. Kg2 Kxb2 69. Kg3 Kb3 70. Kg4 a3 71. Kg5 a2 72. Kxg6 a1=Q (72... a1=B $2 73. Kg5 $19) 73. Nd5 Qd4 74. Nf6 Qxh4 75. Ng8 e4 76. Nh6 e3 (76... Qg3+ {gets mated.} 77. Kf7 e3 78. Nf5 Qf4 79. Kg6 e2 80. Nd4+ Qxd4 81. Kf7 Qf4+ 82. Kg7 Qg5+ 83. Kf8 e1=Q 84. Kf7 Qee7#) 77. Nf5 Qg4+ 78. Kf6 e2 79. Nh6 Qf4+ (79... e1=Q {leads to mate.} 80. Nxg4 a4 81. Nh6 a3 82. Nf5 a2 83. Nd4+ Kc4 84. Kg5 Kxd4 85. Kg6 a1=Q 86. Kg7 Qe7+ 87. Kh6 Qh1+ 88. Kg6 Qhh7#) 80. Nf5 e1=Q (80... e1=R 81. Kg6 Qg4+ 82. Kh7 Rh1+ 83. Nh6 Qg5 84. Kh8 Rxh6#) 81. Kg7 Qxf5 82. Kg8 Qg6+ 83. Kh8 Qh4#) 64. Nd5 {[%emt 0:00:10]} Kb3 {[%emt 0:01:09]} 65. Nb6 {[%emt 0:00:40]} Kxb2 {[%emt 0:00:35]} 66. Nxa4+ {[%emt 0:00:05]} Kb3 {[%emt 0:00:08]} 67. Nb6 {[%emt 0:00:11]} a4 {[%emt 0:00:05]} 68. Nxa4 {[%emt 0:00:04]} Kxa4 {[%emt 0:00:05]} 69. Kg4 {[%emt 0:00:13]} Kb4 {[%emt 0:00:14]} 0-1

[Event "Ostravsky Konik FIDE-A 2024"]
[Site "Ostrava"]
[Date "2024.04.27"]
[Round "1.4"]
[White "Sernecki, Franciszek"]
[Black "Dmochowska, Agnieszka"]
[Result "1-0"]
[ECO "E16"]
[WhiteElo "2342"]
[BlackElo "2001"]
[Annotator "TA"]
[PlyCount "83"]
[EventDate "2024.04.26"]
[EventType "swiss"]
[EventCountry "CZE"]
[SourceTitle "playchess.com"]
[Source "ChessBase"]
[SourceQuality "1"]
[TimeControl "40/5400+30:1800+30"]

{[%evp 20,83,17,16,17,22,10,7,15,21,38,20,33,35,37,29,38,31,79,75,65,68,62,62,62,62,62,62,188,62,67,36,67,10,67,8,69,67,81,0,0,0,82,0,85,85,588,208,851,788,1019,1008,961,814,1498,1390,969,0,1704,1733,29977,9975,29979,29980,29980,29979]} 1. d4 {[%emt 0:00:30]} Nf6 {[%emt 0:00:10]} 2. c4 {[%emt 0:00:30]} e6 {[%emt 0:00:06]} 3. Nf3 {[%emt 0:00:30]} Bb4+ {[%emt 0:02:00]} 4. Bd2 {[%emt 0:00:30]} Bxd2+ {[%emt 0:02:07]} 5. Qxd2 {[%emt 0:00:30]} b6 {[%emt 0:02:55]} 6. g3 {[%emt 0:00:30]} Bb7 {[%emt 0:00:09]} 7. Bg2 {[%emt 0:00:30]} O-O {[%emt 0:00:14]} 8. O-O {[%emt 0:04:01]} d6 {[%emt 0:02:45]} 9. Nc3 {[%emt 0:12:49]} Ne4 {[%emt 0:01:19]} 10. Nxe4 {[%emt 0:24:30]} Bxe4 {[%emt 0:00:10]} 11. Qf4 {[%emt 0:02:44]} f5 {[%emt 0:08:14]} 12. Ng5 {[%emt 0:10:08]} Bxg2 {[%emt 0:07:58]} 13. Kxg2 {[%emt 0:00:39]} Qf6 {[%emt 1:08:53] The position is equal.} 14. d5 {[%emt 0:39:09]} e5 {[%emt 0:00:00]} 15. Qh4 {[%emt 0:00:00][%csl Gg5][%cal Rh4h7]} h6 {[%emt 0:00:00]} 16. Ne6 $40 {[%emt 0:00:00][%mdl 128] Black needs to defend precisely.} Qxh4 {[%emt 0:00:00]} 17. gxh4 {[%emt 0:00:00]} Rf7 {[%emt 0:00:00]} 18. f4 {[%emt 0:02:00]} e4 {[%emt 0:00:00]} (18... Nc6 $14 {is more appropriate.}) 19. b4 {[%emt 0:00:30] White has more active pieces. The black rooks are passive.} c5 {[%emt 0:00:00]} 20. bxc5 {[%emt 0:00:00]} bxc5 {[%emt 0:00:00]} 21. Rab1 {[%emt 0:00:00]} Nd7 {[%emt 0:00:00]} 22. Rb3 {[%emt 0:00:00]} Nb6 {[%emt 0:00:00]} 23. Rc1 {[%emt 0:00:00][%cal Oa2a4]} Kh7 {[%emt 0:00:00]} (23... Re8 $14) 24. Kf2 {[%emt 0:00:00]} (24. a4 $1 $18) 24... Re8 {[%emt 0:00:00]} 25. Ra3 {[%emt 0:00:39]} Rb8 {[%emt 0:00:00]} 26. Rcc3 {[%emt 0:01:05]} (26. Ra6 $14) 26... Rfb7 {[%emt 0:00:00]} (26... g6 $11) 27. Ra6 {[%emt 0:01:02]} ({White should try} 27. h5 $1 $14) 27... Kg8 {[%emt 0:00:00]} (27... g6 $11) 28. a4 {[%emt 0:00:25]} Rd7 {[%emt 0:00:00] [#]} 29. a5 {[%emt 0:00:57]} (29. h5 $1 $16) 29... Na4 $11 {[%emt 0:02:17]} 30. Rc1 {[%emt 0:00:45]} Nb2 {[%emt 0:01:50] [#]} (30... h5 $1 $11) 31. Rc6 {[%emt 0:00:16]} (31. h5 $1 $16) 31... Kf7 {[%emt 0:01:03]} (31... h5 $1 $11) 32. h5 $16 {[%emt 0:00:42]} g6 $2 {[%emt 0:01:02][%mdl 8192]} (32... Ra8 $16 {holds on.}) 33. Rg1 $2 {[%emt 0:00:31]} (33. hxg6+ Ke7 34. g7) 33... Rg8 $2 {[%emt 0:00:53]} (33... g5 34. fxg5 hxg5) 34. Rxg6 $18 {[%emt 0:00:29]} Nxc4 {[%emt 0:00:44]} 35. Rxh6 {[%emt 0:00:27] Black must now prevent Rh7+.} e3+ {[%emt 0:02:11]} 36. Kf3 {[%emt 0:00:02] Hoping for Rh7+.} Re7 {[%emt 0:00:15]} 37. Rh7+ {[%emt 0:00:43]} Kf6 {[%emt 0:00:10]} 38. Rh6+ {[%emt 0:00:25]} (38. Rxe7 $142 Kxe7 39. Rc7+ Kf6 40. Ng5 (40. Rxa7 Rh8 $18) 40... Rxg5 41. fxg5+ Kxg5 42. Rg7+ (42. Rxa7 f4 $18) 42... Kxh5 43. a6 (43. Rxa7 Kg5 $18)) 38... Kf7 {[%emt 0:00:04]} 39. Ng5+ {[%emt 0:00:54]} Rxg5 {[%emt 0:01:31]} 40. fxg5 {[%emt 0:00:03] White threatens Rc8 and mate.} Ne5+ {[%emt 0:00:43]} 41. Kf4 {[%emt 0:30:42]} ({Not} 41. Kxe3 Nxc6+ 42. Kf2 Nd4 $11 (42... Nxa5 43. Rxd6 Nc4 44. Rc6 $16)) 41... Nxc6 {[%emt 0:30:40]} 42. dxc6 {[%emt 0:00:10] Weighted Error Value: White=0.72/Black=0.93.  Loses game:     	---       	Black=1      Mistake:       	White=6     	Black=7      Inaccurate:     	White=1     	Black=2      OK:         	White=8     	Black=5      Best:        	White=2     	Black=3} 1-0